Cogmind - Beta 15 @@@ ROGUE MODE // 2025.07.16 @ 01:34:27 Player: D.J. Result: Self-destructed Performance ------------- Evolutions (2) 1000 Regions Visited (4) 800 Robots Destroyed (8) 40 Value Destroyed (260) 260 Prototype IDs (0) 0 Alien Tech Used (0) 0 Bonus (200) 200 TOTAL SCORE: 2300 Bonus ------- Entered Garrisons 200 Cogmind --------- Core Integrity 387/550 Matter 300/300 Energy 160/160 System Corruption 0% Temperature Warm (190) Movement Rolling (150) Ox4 Location -8/Garrison Parts ------- > --- POWER (3) -------- Light Nuclear Core > --- PROPULSION (2) --- Subdweller Monowheel > --- UTILITY (3) ------ Huge Storage Unit Targeting Computer > --- WEAPON (3) ------- Particle Gun > --- INVENTORY (25) --- Ion Engine Peak State ------------ > --- POWER ------------ Ion Engine Ion Engine Light Nuclear Core > --- PROPULSION ------- Subdweller Monowheel Subdweller Monowheel > --- UTILITY ---------- Huge Storage Unit > --- WEAPON ----------- Particle Gun Beam Cannon Light Cannon > --- INVENTORY -------- Targeting Computer [Rating: 14] Favorites ----------- Power Ion Engine Engine Ion Engine Power Core Light Nuclear Core Propulsion Compact Wheel Wheel Compact Wheel Utility Huge Storage Unit Storage Huge Storage Unit Processor Signal Interpreter Protection Scrap Shield Weapon Medium Laser Energy Gun Medium Laser Energy Cannon Beam Cannon Ballistic Gun Light Assault Rifle Ballistic Cannon Light Cannon Build | -11 -10 -10 -8 -8 ------- Run | Yrd Mat Sub Mat Gar Slots Evolved 4 | . . . 4 . Power 2 | . . . 2 . Propulsion . | . . . . . Utility 1 | . . . 1 . Weapon 1 | . . . 1 . Parts Attached 16 | 3 4 5 1 3 Power 3 | 1 . . 1 1 Engine 2 | 1 . . 1 . Core 1 | . . . . 1 Reactor . | . . . . . Propulsion 4 | 2 . 2 . . Treads . | . . . . . Leg . | . . . . . Wheel 4 | 2 . 2 . . Hover . | . . . . . Flight . | . . . . . Utility 4 | . 2 1 . 1 Device . | . . . . . Storage 1 | . 1 . . . Processor 2 | . 1 . . 1 Hackware . | . . . . . Protection 1 | . . 1 . . Artifact . | . . . . . Weapon 5 | . 2 2 . 1 Energy Gun 2 | . 1 . . 1 Energy Cannon 1 | . . 1 . . Ballistic Gun 1 | . 1 . . . Ballistic Cannon 1 | . . 1 . . Launcher . | . . . . . Special Weapon . | . . . . . Impact Weapon . | . . . . . Slashing Weapon . | . . . . . Piercing Weapon . | . . . . . Special Melee Weapon . | . . . . . Unidentified Prototypes . | . . . . . Parts Lost 5 | . . . . 5 Power 1 | . . . . 1 Propulsion 1 | . . . . 1 Utility 1 | . . . . 1 Weapon 2 | . . . . 2 Highest Loss Streak 4 | . . . . 4 To Critical Strikes . | . . . . . Average Backups 2 | 1 3 3 . 1 Power . | . 1 1 . . Propulsion . | . . . . . Utility . | . . 1 . . Weapon 1 | 1 2 1 . . Tool/Special . | . . . . . Unused Backups 2 | . . 2 . . Power . | . . . . . Propulsion . | . . . . . Utility 1 | . . 1 . . Weapon 1 | . . 1 . . Tool/Special . | . . . . . Average Slot Usage (%) 84 | . 91 87 71 72 Engine 14 | . 14 14 18 15 Wheel 24 | . 28 26 18 17 Storage 9 | . 12 6 8 9 Processor 5 | . 10 3 . 2 Protection 4 | . . 7 9 5 Energy Gun 7 | . 12 5 . 2 Energy Cannon 5 | . . 8 9 9 Ballistic Gun 6 | . 12 5 . . Ballistic Cannon 5 | . . 8 9 9 Peak Build Rating 14 | 3 7 11 13 14 Average Rating 8 | 2 6 8 12 12 On Entrance 6 | . 3 7 11 13 Naked Turns . | . . . . . Heaviest Build 114 | 5 88 88 114 114 Greatest Support 40 | 3 32 40 40 40 Greatest Overweight (x) 4 | 1 2 2 2 4 Average Overweight (x) 1 | . 1 . 2 2 Largest Inventory Capacity 25 | 5 25 25 25 25 Average Capacity 19 | 5 22 13 24 25 Most Carried 11 | 3 5 11 1 3 Average Carried 2 | 2 3 4 . 1 Final Capacity 25 | 5 25 5 25 25 Final Carried 5 | 3 5 2 1 1 Class Distribution -------------------- 61% | Mutant 35% | Subdweller-Mutant Dominant Class ---------------- Mutant | -10/Materials Mutant | -10/Subcaves Subdweller-Mutant | -8/Materials Subdweller-Mutant | -8/Garrison Resources | -11 -10 -10 -8 -8 ----------- Run | Yrd Mat Sub Mat Gar Matter Collected 425 | 179 99 50 40 57 Remotely . | . . . . . Salvage Created 234 | . 68 . 42 124 Parts 9 | . 4 . 1 4 Haulers Intercepted . | . . . . . Recyclers Shooed . | . . . . . Parts Field Recycled . | . . . . . Retrieved Matter . | . . . . . Parts Self-Destructed 5 | . . 5 . . Prevented . | . . . . . Kills | -11 -10 -10 -8 -8 ------- Run | Yrd Mat Sub Mat Gar Combat Hostiles Destroyed 8 | . 4 . 1 3 Guns 4 | . 4 . . . Cannons 4 | . . . 1 3 Classes Destroyed 3 | . 2 . 1 . Swarmer 3 | . 3 . . . Grunt 4 | . 1 . . 3 Hunter 1 | . . . 1 . Best Kill Streak 3 | . 3 . 1 2 Combat Bots Only 3 | . 3 . 1 2 Max Kills in Single Turn 1 | . 1 . 1 1 Gunslinging . | . . . . . Exploded . | . . . . . Melee . | . . . . . Uniques/NPCs Destroyed . | . . . . . Combat | -11 -10 -10 -8 -8 -------- Run | Yrd Mat Sub Mat Gar Hostile Shots Fired 139 | . 28 2 16 93 Missed 44 | . 12 1 3 28 Hits 95 | . 16 1 13 65 Projectile 95 | . 16 1 13 65 Critical Strikes 4 | . . . 1 3 Damage Taken 1083 | . 147 21 223 692 Core 251 | . 67 21 19 144 Absorbed by Shields . | . . . . . Core Remaining (%) 82 | 100 . 64 . . Volleys Fired 30 | . 14 . 5 11 Largest 3 | . 2 . 2 3 Hottest 155 | . 70 . 90 155 Shots Fired 57 | . 22 . 10 25 Gun 25 | . 22 . . 3 Cannon 32 | . . . 10 22 Launcher . | . . . . . Special . | . . . . . Kinetic 24 | . 8 . 5 11 Thermal 33 | . 14 . 5 14 Explosive . | . . . . . Electromagnetic . | . . . . . Robot Hit Streak 5 | . 5 . 3 4 Robot Miss Streak 3 | . 3 . 1 2 Penetration Max . | . . . . . Secondary Targets . | . . . . . Shots Hit Robots 33 | . 13 . 6 14 Core Hits 15 | . 7 . 2 6 Critical Kills . | . . . . . Critical Parts Destroyed . | . . . . . Critical Strikes 1 | . 1 . . . Burn 1 | . 1 . . . Melee Attacks . | . . . . . Impact . | . . . . . Slashing . | . . . . . Piercing . | . . . . . Sneak Attacks . | . . . . . Combat Hostiles . | . . . . . Follow-up Attacks . | . . . . . Damage Inflicted 558 | . 144 . 119 295 Guns 162 | . 144 . . 18 Cannons 380 | . . . 103 277 Explosions . | . . . . . Melee . | . . . . . Ramming 16 | . . . 16 . Kinetic 242 | . 54 . 67 121 Thermal 300 | . 90 . 36 174 Explosive . | . . . . . Electromagnetic . | . . . . . Impact . | . . . . . Slashing . | . . . . . Piercing . | . . . . . Highest Corruption . | . . . . . Average Corruption . | . . . . . Corruption Purged . | . . . . . Corruption Blocked . | . . . . . Overload Shots . | . . . . . Overflow Damage 1 | . . . . 1 Projectiles 1 | . . . . 1 Explosions . | . . . . . Melee . | . . . . . Knockbacks 3 | . . . 2 1 Impact . | . . . . . Kinetic 3 | . . . 2 1 Secondary . | . . . . . Self-Inflicted Damage 8 | . . . 8 . Shots . | . . . . . Rammed 1 | . . . 1 . Targets Rammed 1 | . . . 1 . Kicked . | . . . . . Crushed . | . . . . . Highest Temperature 324 | . 116 . 81 324 Average Temperature 112 | . 69 . 32 161 Received Heat Transfer 282 | . 42 6 . 234 Siege Activations . | . . . . . Martial Activations . | . . . . . Shielding Activations . | . . . . . Robots Disrupted . | . . . . . Combat Hostiles . | . . . . . Robots Corrupted . | . . . . . Combat Hostiles . | . . . . . Parts Fried . | . . . . . Impact Corruptions . | . . . . . Robots Melted . | . . . . . Combat Hostiles . | . . . . . Parts Melted . | . . . . . Heat Transferred 777 | . 333 . 74 370 Parts Sabotaged . | . . . . . Parts Stolen . | . . . . . Parts Stripped . | . . . . . Power Chain Reactions . | . . . . . Alert | -11 -10 -10 -8 -8 ------- Run | Yrd Mat Sub Mat Gar Maximum Alert Level . | . . . . . Low Security (%) 100 | 100 100 . 100 100 Level 1 . | . . . . . Level 2 . | . . . . . Level 3 . | . . . . . Level 4 . | . . . . . Level 5 . | . . . . . High Security . | . . . . . Max Security . | . . . . . Peak Influence 74 | . 60 . 30 74 Initial 9 | . . . . 9 Average 11 | . 8 . 6 27 Influence Increases 240 | . 112 . 53 75 Destroy 0b10 Robot/C 160 | . 80 . 20 60 Destroy Leader 30 | . 20 . 10 . Successful Hack 20 | . 12 . 8 . Partial Spotted 15 | . . . . 15 Lose Combat Pursuer 15 | . . . 15 . Influence Decreases 206 | . 98 14 38 56 Entered New Map 13 | . . 7 . 6 Time Decay 143 | . 98 7 38 . Lost Part 50 | . . . . 50 Squads Dispatched 2 | . 2 . . . Investigation 1 | . 1 . . . Extermination . | . . . . . Reinforcement 1 | . 1 . . . Assault . | . . . . . Garrison . | . . . . . Intercept . | . . . . . Searches Triggered . | . . . . . Construction Impeded . | . . . . . Haulers Reinforced . | . . . . . Active Scanning Responses . | . . . . . Cargo Convoy Interrupts . | . . . . . Stealth | -11 -10 -10 -8 -8 --------- Run | Yrd Mat Sub Mat Gar Distress Signals . | . . . . . Communications Jammed . | . . . . . Distress Signals . | . . . . . Times Spotted 30 | . 7 7 1 15 Peak Tracking Total 11 | . 3 5 2 11 Tactical Retreats 1 | . . . 1 . Traps | -11 -10 -10 -8 -8 ------- Run | Yrd Mat Sub Mat Gar Traps Triggered 1 | . 1 . . . Indirectly . | . . . . . Trap Hack Attempts . | . . . . . Triggered . | . . . . . Disarmed . | . . . . . Reprogrammed . | . . . . . Reused . | . . . . . Traps Extracted . | . . . . . Installed . | . . . . . Triggered . | . . . . . Machines | -11 -10 -10 -8 -8 ---------- Run | Yrd Mat Sub Mat Gar Machines Disabled . | . . . . . Max in Single Turn . | . . . . . Machines Repaired . | . . . . . Machines Dismantled . | . . . . . Machines Sabotaged . | . . . . . Overloaded Fab Kills . | . . . . . Hacking | -11 -10 -10 -8 -8 --------- Run | Yrd Mat Sub Mat Gar Machines Accessed 7 | . 5 . 2 . Terminals 6 | . 5 . 1 . Fabricators . | . . . . . Repair Stations . | . . . . . Recycling Units . | . . . . . Scanalyzers . | . . . . . Garrison Access 1 | . . . 1 . Total Hacks 18 | . 15 . 3 . Successful 9 | . 7 . 2 . Failed 9 | . 8 . 1 . Catastrophic 1 | . 1 . . . Database Lockouts . | . . . . . Manual 13 | . 12 . 1 . Terminals 16 | . 15 . 1 . Fabricators . | . . . . . Repair Stations . | . . . . . Recycling Units . | . . . . . Scanalyzers . | . . . . . Garrison Access 2 | . . . 2 . Terminal Hacks 8 | . 7 . 1 . Record 1 | . 1 . . . Level Access Points 1 | . 1 . . . Alert Level 1 | . 1 . . . Locate Traps 1 | . 1 . . . Maintenance Status 1 | . 1 . . . Recall Investigation 1 | . . . 1 . Zone Layout 2 | . 2 . . . Fabricator Hacks . | . . . . . Repair Station Hacks . | . . . . . Recycling Unit Hacks . | . . . . . Scanalyzer . | . . . . . Garrison Access Hacks 1 | . . . 1 . Unlock Access 1 | . . . 1 . Unauthorized Hacks . | . . . . . Terminals . | . . . . . Fabricators . | . . . . . Repair Stations . | . . . . . Recycling Units . | . . . . . Scanalyzers . | . . . . . Garrison Access . | . . . . . Data Cores Recovered . | . . . . . Used . | . . . . . Hacking Detections 6 | . 5 . 1 . Full Trace Events 1 | . 1 . . . Feedback Events . | . . . . . Feedback Blocked . | . . . . . Robot Schematics Acquired . | . . . . . Robots Built . | . . . . . Authchips . | . . . . . Time . | . . . . . Total Robot Build Rating . | . . . . . Part Schematics Acquired . | . . . . . Parts Built . | . . . . . Authchips . | . . . . . Time . | . . . . . Total Part Build Rating . | . . . . . Parts Repaired . | . . . . . Time . | . . . . . Parts Recycled . | . . . . . Recycled Matter . | . . . . . Retrieved Matter . | . . . . . Retrieved Components . | . . . . . Parts Scanalyzed . | . . . . . Part Schematics Acquired . | . . . . . Parts Damaged . | . . . . . Bothacking | -11 -10 -10 -8 -8 ------------ Run | Yrd Mat Sub Mat Gar Used RIF Installer . | . . . . . Robots Hacked . | . . . . . Non-combat . | . . . . . Combat . | . . . . . Robot Hacks Applied . | . . . . . Relay Couplers Released . | . . . . . Fabnet Peak Effective % . | . . . . . Robots Rewired . | . . . . . Allies Hacked . | . . . . . Hacks Repelled . | . . . . . Allies | -11 -10 -10 -8 -8 -------- Run | Yrd Mat Sub Mat Gar Total Allies . | . . . . . Largest Group . | . . . . . Highest-Rated Group . | . . . . . Highest-Rated Ally . | . . . . . Total Orders . | . . . . . Ally Attacks . | . . . . . Total Damage . | . . . . . Kills . | . . . . . Allies Corrupted . | . . . . . Allies Melted . | . . . . . Intel | -11 -10 -10 -8 -8 ------- Run | Yrd Mat Sub Mat Gar Active Infowar (turns) . | . . . . . Robot Analysis Total . | . . . . . Derelict Logs Recovered 1 | . . 1 . . Drone Launches . | . . . . . Drone Recoveries . | . . . . . Exploration | -11 -10 -10 -8 -8 ------------- Run | Yrd Mat Sub Mat Gar Turns Passed 1704 | 63 625 610 193 213 Spaces Moved 1198 | 59 410 469 129 131 Core 106 | 59 47 . . . Treads . | . . . . . Legs . | . . . . . Wheels 1092 | . 363 469 129 131 Hover . | . . . . . Flight . | . . . . . Fastest Speed 50 | 50 100 110 130 130 Average Speed 121 | 92 125 118 130 130 Slowest Speed 150 | 100 130 130 130 150 Overloaded Moves . | . . . . . Propulsion Burnouts . | . . . . . Robots Hopped . | . . . . . Potential Cave-ins . | . . . . . Cave-ins Triggered . | . . . . . Exploration Rate (%) 17 | 3 33 19 10 23 Regions Visited 4 Branch Regions 1 Pre-discovered Areas 1 | . . 1 . . Known Exits Taken 2 | . 1 . 1 . Unknown Exits Taken 2 | 1 . 1 . . Scrap Searched . | . . . . . Spaces Dug . | . . . . . Terrain Destroyed . | . . . . . Melee . | . . . . . Projectile . | . . . . . AOE . | . . . . . Terrain Rammed . | . . . . . Walls Destroyed . | . . . . . Machines Disabled . | . . . . . Actions | -11 -10 -10 -8 -8 --------- Run | Yrd Mat Sub Mat Gar Total 1393 | 67 501 531 144 150 Wait 118 | . 68 43 7 . Move 1194 | 58 409 468 128 131 Hop . | . . . . . Pick Up 19 | 6 6 3 1 3 Fast Attach . | . . . . . Attach 17 | 3 4 5 2 3 Detach 7 | . . 6 . 1 Swap . | . . . . . Drop 7 | . . 6 . 1 Fire 30 | . 14 . 5 11 Melee . | . . . . . Ram 1 | . . . 1 . Kick . | . . . . . Crush . | . . . . . Escape Stasis . | . . . . . Rewire . | . . . . . Trap . | . . . . . Miscellaneous . | . . . . . Route ------- -11/Scrapyard -10/Materials (discovered 4 exits: Mat x3 / *Sub) -10/Subcaves -8/Materials (discovered 2 exits: Sto / Gar) -8/Garrison History --------- Turn | Location | Event 33 | -11/Scrapyard | Discovered new exit (range 15) 64 | -11/Scrapyard | Entered Materials 318 | -10/Materials | Build established: Mutant 375 | -10/Materials | Identified exit to Materials 672 | -10/Materials | Discovered new exit (range 10) 685 | -10/Materials | Identified exit to Subcaves 689 | -10/Materials | Entered Subcaves 732 | -10/Subcaves | Learned 4 Materials zone layouts 752 | -10/Subcaves | Discovered new exit (range 11) 754 | -10/Subcaves | Learned location of Zion (-6) 754 | -10/Subcaves | Met a Zionite searching for "candidates" 839 | -10/Subcaves | Ambushed by swarm of Subdwellers 1299 | -10/Subcaves | Entered Materials 1299 | -8/Materials | Evolved 4 slots: Power x2, Utility x1, Weapon x1 1300 | -8/Materials | Identified exit to Storage 1321 | -8/Materials | Build established: Subdweller-Mutant 1479 | -8/Materials | Identified exit to Garrison 1492 | -8/Materials | Entered Garrison 1586 | -8/Garrison | Triggered checkpoint 1705 | -8/Garrison | Self-destructed Last Messages --------------- 01623_ Scrap Shield destroyed. 01630_ G-47 Trooper destroyed. 01643_ Acquired 27 matter. 01645_ Acquired Lgt. Nuclear Core. 01651_ Acquired Particle Gun. 01655_ Acquired 4 matter. 01656_ Dropped Targeting Computer. 01657_ Acquired Targeting Computer. 01665_ Acquired 26 matter. Garrison Door activated. 01684_ Critical hit (Burn: +37). 01689_ G-47 Trooper destroyed. 01692_ S-10 Pest knocked back. Garrison Door activated. 01696_ Sub. Monowheel destroyed. 01700_ Ion Engine destroyed. 01701_ S-10 Pest destroyed. 01704_ Lgt. Cannon destroyed. 01704_ Critical hit (Burn: +37). 01704_ Beam Cannon destroyed. Map ----- +----------------------------------------------------+ | ?????????????????????????????????????????????????? | | ?????????????????????????????????????????????????? | | ?????????????????????????????????????????????????? | | ?????????????????????????????????????????????????? | | ?????????????????????????????????????????????????? | | ?????????????????????????????????????????????????? | | ?????????????????????????????????????????????????? | | ?????????????????????????????????????????????????? | | ?????????????????????????????????????????????????? | | ?????????????????????????????????????????????????? | | ?????????????????????????????????????????????????? | | ?????????????????????????????????????????????????? | | ?????????????????????????????????????????????????? | | ????????????????????????????????################## | | ????????????????????????????????# % = | | ????????????????????????????????# % | | ????????????????????????????????# | | ????????????????????##??????????# % ############## | | ????????????????????? ??????????# #????????????? | | ?????????????????????# ?????????# #????????????? | | ?????????????????????# ?????????# #????????????? | | ?????????????????????# ????????# #????????????? | | ?????????????????????# ??####### #????????????? | | ?????????????????????# ?# ## #????????????? | | ?????????????????????# ## ## #????????????? | | ?????????????????????# @ =g #????????????? | | ?????????????????????# s%* #????????????? | | ?????????????????????# s g= s #????????????? | | ?????????????????????# ## ##^^^#????????????? | | ?????????????????????#g ?# ## ^#????????????? | | ???????????????????? s %=???????????? | | ???????????????????# s #??????????? | | ???????????????????# s #??????????? | | ???????????????????#g #??????????? | | ???????????????????### ## ## ###??????????? | | ?????????????????????# ?# ## #????????????? | | ????????????????????? ? ????????????? | | ???????????????????? ?? ? ???????????? | | ????????????????????## ? ##???????????? | | ?????????????????????##??## ## ##????????????? | | ??????????????????????????# #? ??????????????? | | ???????????????????????????####??????????????????? | | ?????????????????????????????????????????????????? | | ?????????????????????????????????????????????????? | | ?????????????????????????????????????????????????? | | ?????????????????????????????????????????????????? | | ?????????????????????????????????????????????????? | | ?????????????????????????????????????????????????? | | ?????????????????????????????????????????????????? | | ?????????????????????????????????????????????????? | +----------------------------------------------------+ Best States ------------- Heat Dissipation 31 Energy Generation 19 Energy Capacity 400 Matter Stores 300 Matter Capacity 300 Sight Range 16 Terrain Scan Density 10 Armor Coverage 800 Evasion (%) 40 Targeting Accuracy 5 Item Schematics ----------------- None Robot Schematics ------------------ None Fabricated ------------ Nothing Repaired ---------- Nothing Alien Tech Used ----------------- None Achievements -------------- None Challenges ------------ None Game ------ Seed MiniAntimatterDoomcannon Manual? 0 Play Time 00:26:02 Cumulative 5.2 hours Start 2025.07.16 @ 00:58:19 End 2025.07.16 @ 01:34:27 Sessions 1 Manual Loads 0 Difficulty Rogue Special Mode None Game No. 15 Rogue 15 Adventurer 0 Explorer 0 Win Type - Total 0 Types 0/0/0/0/0/0/0/0/0/0 Lore% 7 Gallery% 8 Achievement% 9 Wizard Run 0 Options --------- Layout 2 ASCII 0 Keyboard 1 Movement Arrows Keybinds 0 Fullscreen 1 Font 24/Swanston Map View 50x44 Zoom Use 39% Tactical HUD 1 Map Filters NONE Filters NONE Steam 1 RUN: fd93eed2-9db2-43f6-a526-40b628f8c630